{"text_format":"1","workbook":"xlsx","n_sheets":8,"sheets":["変更届添付書類チェックリスト","（様式第９号）変更届","参考２（組織体制図）","参考７（経歴書）","参考20（電子メール登録票）","誓約書","勤務体制形態一覧（移動支援用参考様式）","【参考】ヘルパーの資格要件"],"not_rendered":{"charts":0,"images":1,"macros":0,"external_links":0,"defined_names":55,"comments":1,"pivot_tables":0},"unopened":[],"bounds":{"document_bytes":16777216,"sheet_cells":100000,"rows_first":2000,"rows_last":500,"rows_between":2000,"halvings":0,"cell_chars":16384,"cell_head_chars":4096},"cells_cut":0,"cells_raw":0,"read":"whole","date_system":"1900"}

{"sheet":"変更届添付書類チェックリスト","index":0,"n_rows":27,"n_cols":15,"rows_kept":27,"cut":false,"hidden":false,"merged":[[3,0,3,14],[6,7,6,10],[1,0,1,14],[4,1,4,5],[4,6,4,10],[4,11,4,14],[5,1,5,5],[5,7,5,10],[5,11,5,14],[2,0,2,14],[6,1,7,5],[6,0,7,0],[7,7,7,10],[7,11,7,14],[6,11,6,14],[8,0,10,0],[8,1,10,5],[8,7,8,10],[8,11,8,14],[9,7,9,10],[9,11,9,14],[10,7,10,10],[11,11,11,14],[11,7,11,10],[12,11,12,14],[12,7,12,10],[10,11,10,14],[13,0,14,0],[13,1,14,5],[13,7,13,10],[13,11,13,14],[14,7,14,10],[14,11,14,14],[17,11,17,14],[11,0,12,0],[11,1,12,5],[15,0,16,0],[15,1,16,5],[15,7,15,10],[16,7,16,10],[18,11,18,14],[21,7,21,10],[18,7,18,10],[19,11,19,14],[20,7,20,10],[20,11,20,14],[26,11,26,14],[22,7,22,10],[22,11,22,14],[23,11,23,14],[24,7,24,10],[24,11,25,14],[21,11,21,14],[25,7,25,10],[26,1,26,5],[26,7,26,10],[19,0,21,0],[19,1,21,5],[19,7,19,10],[23,0,25,0],[23,1,25,5],[23,7,23,10],[17,0,18,0],[17,1,18,5],[17,7,17,10],[22,1,22,5]]}
[null,null,null,null,null,null,null,null,null,null,null,null,null,null,"2021.4.1時点"]
["変更届添付書類チェックリスト（福岡市移動支援事業）"]
["変更届(様式第9号)に下表の書類を添付してください。"]
["※居宅介護等と移動支援の変更届出の添付書類で同じものを提出する場合，移動支援事業の添付書類については，写し（コピー）での提出も可とします。\n※下記書類の他，必要に応じて別途書類の提出を求める場合があります。\n※該当する番号を丸で囲み，確認欄に赤字でチェックを入れてください。\n\n"]
["番号","変更の届出を要する事項",null,null,null,null,"必要な添付書類（変更後のもの）",null,null,null,null,"備考"]
[1,"事業所の名称",null,null,null,null,"□","運営規程"]
[2,"事業所の所在地（設置の場所）",null,null,null,null,"□","運営規程"]
[null,null,null,null,null,null,"□","建物の登記簿謄本の写し又は建物賃貸借契約書の写し"]
[3,"申請者（設置者）の名称",null,null,null,null,"□","定款"]
[null,null,null,null,null,null,"□","登記簿の謄本の写し（履歴事項全部証明書）"]
[null,null,null,null,null,null,"□","運営規定"]
[4,"主たる事務所の所在地",null,null,null,null,"□","定款"]
[null,null,null,null,null,null,"□","登記簿の謄本の写し（履歴事項全部証明書）"]
[5,"代表者の氏名及び住所",null,null,null,null,"□","登記簿の謄本の写し（履歴事項全部証明書）"]
[null,null,null,null,null,null,"□","福岡市移動支援事業の実施に係る誓約書"]
[6,"定款・寄付行為等及びその登記簿の謄本又は条例等（当該指定に係る事業に関するものに限る。）",null,null,null,null,"□","定款"]
[null,null,null,null,null,null,"□","登記簿の謄本の写し（履歴事項全部証明書）"]
[7,"事業所の管理者の氏名及び住所",null,null,null,null,"□","管理者の経歴書（参考様式７）"]
[null,null,null,null,null,null,"□","福岡市移動支援事業の実施に係る誓約書"]
[8,"事業所のサービス提供責任者の氏名及び住所",null,null,null,null,"□","サービス提供責任者の経歴書（参考様式７）"]
[null,null,null,null,null,null,"□","資格証明書の写し，研修修了証の写し"]
[null,null,null,null,null,null,"□","勤務形態一覧表（移動支援用参考様式）",null,null,null,"サービス提供責任者の人数に増減がある場合のみ"]
[9,"主たる対象者",null,null,null,null,"□","運営規程"]
[10,"運営規程",null,null,null,null,"□","運営規程",null,null,null,"新旧対照表を添付のこと"]
[null,null,null,null,null,null,"□","組織体制図（参考様式２）",null,null,null,"従業者の配置変更などがある場合"]
[null,null,null,null,null,null,"□","勤務形態一覧表（移動支援用参考様式）"]
[11,"事業所のメールアドレス，TEL・FAX番号",null,null,null,null,"□","連絡送信先電子メールアドレス登録票(参考様式２０）",null,null,null,"変更届出書（様式第９号）変更前，変更後にそれぞれの変更内容を記載すること"]

{"sheet":"（様式第９号）変更届","index":1,"n_rows":44,"n_cols":18,"rows_kept":44,"cut":false,"hidden":false,"merged":[[18,0,19,2],[18,3,18,4],[18,5,18,18],[19,3,19,4],[19,5,19,18],[2,0,3,18],[9,5,9,7],[10,5,10,7],[11,5,11,7],[17,3,17,4],[29,1,29,3],[20,0,20,3],[20,4,20,18],[21,1,21,3],[22,1,22,3],[23,1,23,3],[24,1,24,3],[25,1,25,3],[26,1,26,3],[27,1,27,3],[28,1,28,3],[30,1,30,3],[31,1,31,3],[32,1,32,3],[40,0,40,3],[40,4,40,18]]}
["様式第９号"]
[]
["福岡市移動支援事業者　登録変更届出書"]
[]
[null,null,null,null,null,null,null,null,null,null,null,null,null,"年",null,"月",null,"日"]
[]
[null,"（あて先）福岡市長"]
[]
[]
[null,null,null,null,null,"所在地"]
[null,null,null,null,"事業者","名称"]
[null,null,null,null,null,"代表者"]
[]
[]
[]
[null,"下記のとおり登録申請を行った内容を変更しましたので届け出ます。"]
[]
[null,null,null,"事業所番号"]
["登録内容を変更した事業所",null,null,"名　 　　　　　 称"]
[null,null,null,"所在地"]
["変更があった事項",null,null,null,"変更の内容"]
[1,"事業所の名称",null,null,"（変更前）"]
[2,"事業所の所在地"]
[3,"申請者の名称"]
[4,"主たる事務所の所在地"]
[5,"代表者の氏名及び住所"]
[6,"定款・寄付行為等及びその登記簿の謄本又は条例等（当該指定に係る事業に関するものに限る。）"]
[7,"事業所の管理者の氏名及び住所"]
[8,"事業所のサービス提供責任者の氏名及び住所"]
[9,"主たる対象者",null,null,"（変更後）"]
[10,"運営規程"]
[11,"事業所のメールアドレス，TEL・FAX番号"]
[]
[]
[]
[]
[]
[]
[]
[]
["変更年月日",null,null,null,"　　　　年　　月　　日"]
["備考１　該当項目番号に○を付してください。"]
["　　　２　変更内容がわかる書類を添付してください。"]
["　　　３　変更の日から１０日以内に届け出てください。"]

{"sheet":"参考２（組織体制図）","index":2,"n_rows":35,"n_cols":2,"rows_kept":35,"cut":false,"hidden":false,"merged":[[0,0,0,5],[4,1,4,4],[4,5,4,14]]}
["（参考様式２）"]
[]
[null,"組織体制図"]
[]
[null,"事業所の名称"]
[]
[]
[]
[]
[]
[]
[]
[]
[]
[]
[]
[]
[]
[]
[]
[]
[]
[]
[]
[]
[]
[]
[]
[]
[]
[]
[]
[]
["備考１　当該居宅介護事業所の従業者氏名を記載してください  （兼務関係が分かるようにしてください）"]
["　　２　同一敷地内で施設系サービスを実施している場合は，施設系サービスを含めて記載してください。"]

{"sheet":"参考７（経歴書）","index":3,"n_rows":52,"n_cols":7,"rows_kept":52,"cut":false,"hidden":false,"merged":[[33,0,39,3],[33,4,39,8],[40,0,45,8],[46,0,46,8],[30,0,30,2],[30,3,30,5],[30,6,30,8],[31,0,31,8],[32,0,32,3],[32,4,32,8],[28,0,28,2],[28,3,28,5],[28,6,28,8],[29,0,29,2],[29,3,29,5],[29,6,29,8],[26,0,26,2],[26,3,26,5],[26,6,26,8],[27,0,27,2],[27,3,27,5],[27,6,27,8],[24,0,24,2],[24,3,24,5],[24,6,24,8],[25,0,25,2],[25,3,25,5],[25,6,25,8],[22,0,22,2],[22,3,22,5],[22,6,22,8],[23,0,23,2],[23,3,23,5],[23,6,23,8],[20,0,20,2],[20,3,20,5],[20,6,20,8],[21,0,21,2],[21,3,21,5],[21,6,21,8],[18,0,18,2],[18,3,18,5],[18,6,18,8],[19,0,19,2],[19,3,19,5],[19,6,19,8],[16,0,16,2],[16,3,16,5],[16,6,16,8],[17,0,17,2],[17,3,17,5],[17,6,17,8],[11,0,12,0],[11,1,12,8],[13,1,13,8],[14,0,14,8],[15,0,15,2],[15,3,15,5],[15,6,15,8],[7,0,7,1],[7,2,7,8],[8,1,8,4],[8,5,10,5],[8,6,10,8],[9,0,10,0],[9,1,10,4],[0,0,0,1],[1,2,1,5],[1,6,5,6],[2,2,2,5],[3,2,3,5],[4,2,4,5],[5,2,5,5]]}
["（参考様式７）"]
[null,null,null,null,null,null,"経歴書"]
[]
[null,null,"(                         )"]
[]
[]
[]
["事業所の名称"]
["フリガナ",null,null,null,null,"生年月日","　　年　　月　　日"]
["氏名"]
[]
["住所","（郵便番号　　　－　　　）"]
[]
["電話番号"]
["主な職歴等"]
["年　月　～　年　月",null,null,"勤務先等",null,null,"職務内容"]
[]
[]
[]
[]
[]
[]
[]
[]
[]
[]
[]
[]
[]
[]
[]
["職務に関連する資格"]
["資格の種類",null,null,null,"資格取得年月日"]
[]
[]
[]
[]
[]
[]
[]
["備考（研修等の受講の状況等）"]
[]
[]
[]
[]
[]
["備考１　括弧内には，管理者，サービス提供責任者，サービス管理責任者，相談支援専門員等の職種を記"]
["　　　入してください。（事務員等の経歴書は不要です。）"]
["　　２　住所・電話番号は、自宅のものを記載してください。"]
["　　３　当該管理者が管理する事業所が複数の場合は、「事業所の名称」欄を適宜拡張して、その全てを"]
["　　　記載してください。"]
["　　４　相談支援専門員については、相談支援従事者初任者（現任）研修の終了した旨の証明書を添付すること。"]

{"sheet":"参考20（電子メール登録票）","index":4,"n_rows":11,"n_cols":13,"rows_kept":11,"cut":false,"hidden":false,"merged":[[10,1,10,47],[7,1,7,10],[7,13,7,47],[8,1,8,10],[8,13,8,47],[9,1,9,10],[9,13,9,47],[5,1,5,10],[5,12,5,14],[5,15,5,47],[6,1,6,10],[6,13,6,47],[0,0,0,48],[2,5,2,43],[4,1,4,10],[4,12,4,14],[4,15,4,47]]}
["（参考様式20）"]
[]
[null,null,null,null,null,"福岡市移動支援事業\n連絡送信先電子メールアドレス登録票"]
[]
[null,"送信先\nメールアドレス",null,null,null,null,null,null,null,null,null,null,"①"]
[null,"送信先\nメールアドレス",null,null,null,null,null,null,null,null,null,null,"②"]
[null,"事業所名"]
[null,"管理者名"]
[null,"\n電話番号"]
[null,"\nＦＡＸ番号"]
[null,"※送信を希望するメールアドレスが２つあれば，上記に２カ所記入して下さい。"]

{"sheet":"誓約書","index":5,"n_rows":16,"n_cols":16,"rows_kept":16,"cut":false,"hidden":false,"merged":[[11,11,11,18],[15,0,16,18],[18,1,18,18],[0,0,0,4],[2,0,2,18],[5,15,5,18],[7,1,7,4],[9,11,9,18],[10,11,10,18],[12,11,12,18]]}
[]
[]
["福岡市移動支援事業の実施に係る誓約書"]
[]
[]
[null,null,null,null,null,null,null,null,null,null,null,null,null,null,null,"　　年　　　月　 　日　"]
[]
["　福岡県知事　様","福岡市長　"]
[]
[null,null,null,null,null,null,null,"申請者",null,"所在地"]
[null,null,null,null,null,null,null,null,null,"名　称"]
[null,null,null,null,null,null,null,"代表者",null,"住　所"]
[null,null,null,null,null,null,null,null,null,"氏　名"]
[]
[]
["　当法人（役員，サービス事業所の管理者，事業者と密接な関係を有する者を含む。）は，福岡市移動支援事業実施要綱別記に定める事業者登録基準を全て満たすことを誓約します。"]

{"sheet":"勤務体制形態一覧（移動支援用参考様式）","index":6,"n_rows":34,"n_cols":70,"rows_kept":34,"cut":false,"hidden":false,"merged":[[6,63,8,63],[6,64,8,64],[6,65,8,65],[6,27,6,33],[6,34,6,40],[6,41,6,47],[1,1,1,50],[2,1,2,69],[4,1,4,5],[4,6,4,15],[4,16,4,21],[4,22,4,56],[4,57,8,59],[4,60,8,62],[4,63,5,65],[4,66,8,66],[4,67,8,67],[4,68,8,68],[4,69,8,69],[5,1,5,15],[5,16,5,21],[5,22,5,56],[6,1,8,5],[6,6,8,8],[6,9,8,14],[6,15,6,19],[6,54,8,56],[6,48,8,50],[6,51,8,53],[9,57,9,59],[9,60,9,62],[10,1,10,5],[10,6,10,8],[10,9,10,14],[10,48,10,50],[10,51,10,53],[10,54,10,56],[10,57,10,59],[10,60,10,62],[9,1,9,5],[9,6,9,8],[9,9,9,14],[9,48,9,50],[9,51,9,53],[9,54,9,56],[7,15,8,15],[7,16,8,16],[7,17,8,17],[7,18,8,18],[7,19,8,19],[6,20,6,26],[11,57,11,59],[11,60,11,62],[12,1,12,5],[12,6,12,8],[12,9,12,14],[12,48,12,50],[12,51,12,53],[12,54,12,56],[12,57,12,59],[12,60,12,62],[11,1,11,5],[11,6,11,8],[11,9,11,14],[11,48,11,50],[11,51,11,53],[11,54,11,56],[13,57,13,59],[13,60,13,62],[14,1,14,5],[14,6,14,8],[14,9,14,14],[14,48,14,50],[14,51,14,53],[14,54,14,56],[14,57,14,59],[14,60,14,62],[13,1,13,5],[13,6,13,8],[13,9,13,14],[13,48,13,50],[13,51,13,53],[13,54,13,56],[15,57,15,59],[15,60,15,62],[16,1,16,5],[16,6,16,8],[16,9,16,14],[16,48,16,50],[16,51,16,53],[16,54,16,56],[16,57,16,59],[16,60,16,62],[15,1,15,5],[15,6,15,8],[15,9,15,14],[15,48,15,50],[15,51,15,53],[15,54,15,56],[17,57,17,59],[17,60,17,62],[18,1,18,5],[18,6,18,8],[18,9,18,14],[18,48,18,50],[18,51,18,53],[18,54,18,56],[18,57,18,59],[18,60,18,62],[17,1,17,5],[17,6,17,8],[17,9,17,14],[17,48,17,50],[17,51,17,53],[17,54,17,56],[19,57,19,59],[19,60,19,62],[20,1,20,5],[20,6,20,8],[20,9,20,14],[20,48,20,50],[20,51,20,53],[20,54,20,56],[20,57,20,59],[20,60,20,62],[19,1,19,5],[19,6,19,8],[19,9,19,14],[19,48,19,50],[19,51,19,53],[19,54,19,56],[21,57,21,59],[21,60,21,62],[22,1,22,5],[22,6,22,8],[22,9,22,14],[22,48,22,50],[22,51,22,53],[22,54,22,56],[22,57,22,59],[22,60,22,62],[21,1,21,5],[21,6,21,8],[21,9,21,14],[21,48,21,50],[21,51,21,53],[21,54,21,56],[23,57,23,59],[23,60,23,62],[24,1,24,5],[24,6,24,8],[24,9,24,14],[24,48,24,50],[24,51,24,53],[24,54,24,56],[24,57,24,59],[24,60,24,62],[23,1,23,5],[23,6,23,8],[23,9,23,14],[23,48,23,50],[23,51,23,53],[23,54,23,56],[25,57,25,59],[25,60,25,62],[26,1,26,19],[26,48,26,50],[26,51,26,53],[26,54,26,56],[26,57,28,69],[27,1,27,47],[27,48,27,53],[27,54,27,56],[25,1,25,5],[25,6,25,8],[25,9,25,14],[25,48,25,50],[25,51,25,53],[25,54,25,56],[32,1,32,2],[32,3,32,69],[33,1,33,2],[33,3,33,69],[28,1,28,47],[28,48,28,53],[28,54,28,56],[29,1,29,47],[30,1,31,2],[30,3,31,69]]}
[]
[null,"（移動支援用参考様式）"]
[null,"管理者・従業者の勤務の体制及び勤務形態一覧表"]
[]
[null,"サービス種類",null,null,null,null,"移動支援",null,null,null,null,null,null,null,null,null,"事業所名",null,null,null,null,null,null,null,null,null,null,null,null,null,null,null,null,null,null,null,null,null,null,null,null,null,null,null,null,null,null,null,null,null,null,null,null,null,null,null,null,"介護福祉士/実務者研修/\n介護職員基礎研修/\nヘルパー１級",null,null,"居宅介護職員初任者研修/\n介護職員初任者研修/\nヘルパー２・３級",null,null,"ガイドヘルパー",null,null,"同行援護従業者養成研修","行動援護従業者養成研修","強度行動障害支援者養成研修","重度訪問介護従業者養成研修"]
[null,"介護保険法に基づく訪問介護事業所の指定",null,null,null,null,null,null,null,null,null,null,null,null,null,null,"□あり　□なし"]
[null,"職種",null,null,null,null,"勤務形態",null,null,"氏名",null,null,null,null,null,"従事する訪問系サービスに○",null,null,null,null,"第１週",null,null,null,null,null,null,"第２週",null,null,null,null,null,null,"第３週",null,null,null,null,null,null,"第４週",null,null,null,null,null,null,"4週の\n合計",null,null,"週平均の勤務時間",null,null,"常勤換算後の人数",null,null,null,null,null,null,null,null,"視覚","全身性","知的"]
[null,null,null,null,null,null,null,null,null,null,null,null,null,null,null,"居宅介護","重度訪問","同行援護","行動援護","移動支援",1,2,3,4,5,6,7,8,9,10,11,12,13,14,15,16,17,18,19,20,21,22,23,24,25,26,27,28]
[null,null,null,null,null,null,null,null,null,null,null,null,null,null,null,null,null,null,null,null,"＊"]
[null,"管理者",null,null,null,null,null,null,null,null,null,null,null,null,null,null,null,null,null,null,null,null,null,null,null,null,null,null,null,null,null,null,null,null,null,null,null,null,null,null,null,null,null,null,null,null,null,null,{"$f":"SUM(U10:AV10)","v":0},null,null,{"$f":"AW10/4","v":0},null,null,{"$f":"ROUNDDOWN(AZ10/$AW$28,1)","v":0}]
[null,"サービス提供責任者",null,null,null,null,null,null,null,null,null,null,null,null,null,null,null,null,null,null,null,null,null,null,null,null,null,null,null,null,null,null,null,null,null,null,null,null,null,null,null,null,null,null,null,null,null,null,{"$f":"SUM(U11:AV11)","v":0},null,null,{"$f":"AW11/4","v":0},null,null,0]
[null,null,null,null,null,null,null,null,null,null,null,null,null,null,null,null,null,null,null,null,null,null,null,null,null,null,null,null,null,null,null,null,null,null,null,null,null,null,null,null,null,null,null,null,null,null,null,null,0,null,null,0,null,null,0]
[null,null,null,null,null,null,null,null,null,null,null,null,null,null,null,null,null,null,null,null,null,null,null,null,null,null,null,null,null,null,null,null,null,null,null,null,null,null,null,null,null,null,null,null,null,null,null,null,0,null,null,0,null,null,0]
[null,null,null,null,null,null,null,null,null,null,null,null,null,null,null,null,null,null,null,null,null,null,null,null,null,null,null,null,null,null,null,null,null,null,null,null,null,null,null,null,null,null,null,null,null,null,null,null,0,null,null,0,null,null,0]
[null,null,null,null,null,null,null,null,null,null,null,null,null,null,null,null,null,null,null,null,null,null,null,null,null,null,null,null,null,null,null,null,null,null,null,null,null,null,null,null,null,null,null,null,null,null,null,null,0,null,null,0,null,null,0]
[null,null,null,null,null,null,null,null,null,null,null,null,null,null,null,null,null,null,null,null,null,null,null,null,null,null,null,null,null,null,null,null,null,null,null,null,null,null,null,null,null,null,null,null,null,null,null,null,0,null,null,0,null,null,0]
[null,null,null,null,null,null,null,null,null,null,null,null,null,null,null,null,null,null,null,null,null,null,null,null,null,null,null,null,null,null,null,null,null,null,null,null,null,null,null,null,null,null,null,null,null,null,null,null,0,null,null,0,null,null,0]
[null,null,null,null,null,null,null,null,null,null,null,null,null,null,null,null,null,null,null,null,null,null,null,null,null,null,null,null,null,null,null,null,null,null,null,null,null,null,null,null,null,null,null,null,null,null,null,null,0,null,null,0,null,null,0]
[null,null,null,null,null,null,null,null,null,null,null,null,null,null,null,null,null,null,null,null,null,null,null,null,null,null,null,null,null,null,null,null,null,null,null,null,null,null,null,null,null,null,null,null,null,null,null,null,0,null,null,0,null,null,0]
[null,null,null,null,null,null,null,null,null,null,null,null,null,null,null,null,null,null,null,null,null,null,null,null,null,null,null,null,null,null,null,null,null,null,null,null,null,null,null,null,null,null,null,null,null,null,null,null,0,null,null,0,null,null,0]
[null,null,null,null,null,null,null,null,null,null,null,null,null,null,null,null,null,null,null,null,null,null,null,null,null,null,null,null,null,null,null,null,null,null,null,null,null,null,null,null,null,null,null,null,null,null,null,null,0,null,null,0,null,null,0]
[null,null,null,null,null,null,null,null,null,null,null,null,null,null,null,null,null,null,null,null,null,null,null,null,null,null,null,null,null,null,null,null,null,null,null,null,null,null,null,null,null,null,null,null,null,null,null,null,0,null,null,0,null,null,0]
[null,null,null,null,null,null,null,null,null,null,null,null,null,null,null,null,null,null,null,null,null,null,null,null,null,null,null,null,null,null,null,null,null,null,null,null,null,null,null,null,null,null,null,null,null,null,null,null,0,null,null,0,null,null,0]
[null,null,null,null,null,null,null,null,null,null,null,null,null,null,null,null,null,null,null,null,null,null,null,null,null,null,null,null,null,null,null,null,null,null,null,null,null,null,null,null,null,null,null,null,null,null,null,null,0,null,null,0,null,null,0]
[null,null,null,null,null,null,null,null,null,null,null,null,null,null,null,null,null,null,null,null,null,null,null,null,null,null,null,null,null,null,null,null,null,null,null,null,null,null,null,null,null,null,null,null,null,null,null,null,0,null,null,0,null,null,0]
[null,null,null,null,null,null,null,null,null,null,null,null,null,null,null,null,null,null,null,null,null,null,null,null,null,null,null,null,null,null,null,null,null,null,null,null,null,null,null,null,null,null,null,null,null,null,null,null,{"$f":"SUM(U26:AV26)","v":0},null,null,{"$f":"AW26/4","v":0},null,null,0]
[null,"合計",null,null,null,null,null,null,null,null,null,null,null,null,null,null,null,null,null,null,{"$f":"SUM(U10:U26)","v":0},{"$f":"SUM(V10:V26)","v":0},0,0,0,0,0,0,0,0,0,0,0,0,0,0,0,0,0,0,0,0,0,0,0,0,0,0,{"$f":"SUM(AW10:AY26)","v":0},null,null,{"$f":"SUM(AZ10:BB26)","v":0},null,null,{"$f":"SUM(BC10:BE26)","v":0}]
[null,"1週間に当該事業所・施設における常勤職員の勤務すべき時間数",null,null,null,null,null,null,null,null,null,null,null,null,null,null,null,null,null,null,null,null,null,null,null,null,null,null,null,null,null,null,null,null,null,null,null,null,null,null,null,null,null,null,null,null,null,null,40,null,null,null,null,null,"時間"]
[null,"常勤換算後の人数",null,null,null,null,null,null,null,null,null,null,null,null,null,null,null,null,null,null,null,null,null,null,null,null,null,null,null,null,null,null,null,null,null,null,null,null,null,null,null,null,null,null,null,null,null,null,null,null,null,null,null,null,"人"]
[]
[null,"注１",null,"「職種」欄は、直接サービス提供職員に係る職種を記載し、「勤務形態」欄は、①常勤・専従、②常勤・兼務、③非常勤・専従、④非常勤・兼務のいずれかを記載するとともに、それぞれ1日あたりの勤務時間を記載してください。（事務員等以外は全て記入して下さい。）"]
[]
[null,"注２",null,"算出に当たっては、小数点以下第２位を切り捨ててください。"]
[null,"注３",null,"ヘルパーの資格要件については、「居宅介護・重度訪問介護・行動援護・同行援護・移動支援サービスを提供する従業者（ヘルパー）の資格要件」を参照してください。"]

{"sheet":"【参考】ヘルパーの資格要件","index":7,"n_rows":0,"n_cols":0,"rows_kept":0,"cut":false,"hidden":false,"merged":[]}